bitfinex/quotes_SOLUSD_20251019
["timestamp","ask_amount","ask_price","bid_price","bid_amount"]
[1760846256523,3.34043426,187.2,187.15,5.3433075]
[1760846256726,3.34043426,187.2,187.16,0.66]
[1760846257433,3.34043426,187.19,187.16,0.66]
[1760846259236,3.34043426,187.17,187.14,0.66]
[1760846259440,3.34043426,187.17,187.12,5.34413894]
[1760846259640,3.34043426,187.17,187.13,0.66]
[1760846259940,3.34043426,187.17,187.14,0.66]
[1760846261926,3.34043426,187.16,187.13,0.66]
[1760846263144,3.34043426,187.16,187.1,21.41263857]
[1760846263452,3.78043426,187.16,187.13,0.66]
[1760846264245,3.34043426,187.16,187.13,0.66]
[1760846264648,3.78043426,187.16,187.13,0.66]
[1760846264854,3.78043426,187.16,187.11,6.02428625]
[1760846265057,3.78043426,187.16,187.12,0.68]
[1760846265452,3.78043426,187.16,187.11,5.34428625]
[1760846265653,3.34043426,187.16,187.13,0.68]
[1760846268656,26.66043426,187.17,187.14,0.68]
[1760846268870,26.66043426,187.17,187.15,0.68]
[1760846269044,102.1,187.19,187.16,0.68]
[1760846269243,102.1,187.19,187.17,0.68]
[1760846269438,102.1,187.19,187.16,0.68]
[1760846270140,105.44043426,187.19,187.15,0.68]
[1760846270341,3.34043426,187.18,187.15,0.68]
[1760846270941,105.44043426,187.19,187.15,0.68]
[1760846271537,3.34043426,187.17,187.13,0.68]
[1760846271751,3.34043426,187.17,187.12,16.03162225]
[1760846271954,3.34043426,187.17,187.14,0.68]
[1760846274365,3.78043426,187.18,187.15,0.68]
[1760846274744,102.1,187.19,187.15,0.68]
[1760846275143,102.1,187.19,187.15,23.39157409]
[1760846275447,102.1,187.19,187.16,0.68]
[1760846275647,102.1,187.19,187.17,0.68]
[1760846277367,102.1,187.19,187.18,0.68]
[1760846278951,3.78043426,187.23,187.18,0.68]
[1760846279262,3.78043426,187.24,187.18,20.08340108]
[1760846279451,3.78043426,187.24,187.19,0.68]
[1760846279652,3.78043426,187.24,187.2,0.68]
[1760846280164,3.34043426,187.24,187.21,0.68]
[1760846280757,3.34043426,187.24,187.19,5.34214373]
[1760846280974,3.34043426,187.24,187.2,0.68]
[1760846281169,3.34043426,187.24,187.21,0.68]
[1760846281364,102.54,187.25,187.21,0.68]
[1760846281572,102.1,187.25,187.21,0.68]
[1760846282370,102.1,187.25,187.21,6.02156173]
[1760846282665,102.1,187.25,187.22,0.68]
[1760846282860,102.1,187.25,187.22,6.02126695]
[1760846283060,102.1,187.25,187.22,9.36170121]
[1760846283367,3.34043426,187.27,187.23,0.68]
[1760846283671,3.34043426,187.27,187.24,0.68]
[1760846284648,3.34043426,187.27,187.25,0.68]
[1760846284853,3.34043426,187.28,187.25,0.68]
[1760846286269,3.44043426,187.29,187.26,0.68]
[1760846286962,0.1,187.29,187.27,0.68]
[1760846287271,0.1,187.29,187.28,0.68]
[1760846297683,0.1,187.29,187.28,9.36003272]
[1760846298677,0.1,187.29,187.28,9.89399256]
[1760846298885,0.1,187.29,187.28,13.23442682]
[1760846302572,0.1,187.29,187.28,24.11090203]
[1760846312090,0.1,187.29,187.28,27.45133629]
[1760846312266,0.1,187.29,187.28,54.45133629]
[1760846312665,0.1,187.34,187.32,10.87647521]
[1760846312870,0.1,187.34,187.33,3.34043426]
[1760846313069,0.1,187.34,187.33,4.00043426]
[1760846313266,0.1,187.34,187.33,11.47850321]
[1760846315782,0.1,187.34,187.33,22.35497842]
[1760846319299,0.1,187.34,187.33,19.01454416]
[1760846319497,0.1,187.34,187.33,22.35497842]
[1760846319879,0.1,187.34,187.33,49.33497842]
[1760846320800,0.1,187.34,187.33,22.35497842]
[1760846320989,0.1,187.34,187.33,49.33497842]
[1760846321393,0.1,187.34,187.33,22.35497842]
[1760846321586,0.1,187.34,187.33,49.33497842]
[1760846321983,0.1,187.34,187.33,22.35497842]
[1760846322509,0.1,187.34,187.33,49.33497842]
[1760846323105,0.1,187.34,187.33,22.35497842]
[1760846323310,0.1,187.34,187.33,49.33497842]
[1760846324193,0.1,187.34,187.33,72.21497842]
[1760846325305,0.1,187.34,187.33,45.23497842]
[1760846327011,0.1,187.34,187.33,72.21497842]
[1760846327491,0.1,187.34,187.33,41.89454416]
[1760846327803,0.1,187.34,187.33,45.23497842]
[1760846328519,0.1,187.34,187.33,72.21497842]
[1760846328910,0.1,187.34,187.33,45.23497842]
[1760846329111,0.1,187.34,187.33,72.21497842]
[1760846329488,0.1,187.34,187.33,68.87454416]
[1760846329682,0.1,187.34,187.33,44.57497842]
[1760846330088,0.1,187.34,187.33,72.26497842]
[1760846330392,0.1,187.34,187.33,45.28497842]
[1760846330600,0.1,187.34,187.33,41.23454416]
[1760846330806,0.1,187.34,187.33,71.55497842]
[1760846331024,0.1,187.34,187.33,44.57497842]
[1760846331394,0.1,187.34,187.33,45.28497842]
[1760846332602,0.1,187.34,187.33,72.26497842]
[1760846332806,0.1,187.34,187.33,45.28497842]
[1760846333004,0.1,187.34,187.33,72.26497842]
[1760846333191,0.1,187.34,187.33,45.28497842]
[1760846333594,0.1,187.34,187.33,72.26497842]
[1760846333919,0.1,187.34,187.33,45.28497842]
[1760846334290,0.1,187.34,187.33,72.26497842]
[1760846334598,0.1,187.34,187.33,45.28497842]
[1760846336404,0.1,187.34,187.33,72.26497842]
[1760846336596,0.1,187.34,187.33,45.28497842]
[1760846336796,0.1,187.34,187.33,72.26497842]
[1760846337107,0.1,187.34,187.33,45.28497842]
[1760846337708,0.1,187.34,187.33,72.26497842]
[1760846338010,0.1,187.34,187.33,45.28497842]
[1760846338494,0.1,187.34,187.33,72.26497842]
[1760846338690,0.1,187.34,187.33,45.28497842]
[1760846339202,0.1,187.34,187.33,72.26497842]
[1760846339406,0.1,187.34,187.33,45.28497842]
[1760846344618,0.1,187.34,187.33,72.26497842]
[1760846344805,0.1,187.34,187.33,45.28497842]
[1760846345799,0.1,187.34,187.33,19.06454416]
[1760846346004,0.1,187.34,187.33,49.38497842]
[1760846346203,0.1,187.34,187.33,22.40497842]
[1760846346611,0.1,187.34,187.33,49.38497842]
[1760846346797,0.1,187.34,187.33,22.40497842]
[1760846347290,0.1,187.34,187.33,49.38497842]
[1760846347496,0.1,187.34,187.33,22.40497842]
[1760846347696,0.1,187.34,187.33,49.38497842]
[1760846348310,0.1,187.34,187.33,22.40497842]
[1760846349417,0.1,187.34,187.33,49.38497842]
[1760846349610,0.1,187.34,187.33,21.69497842]
[1760846349798,0.1,187.34,187.33,22.37497842]
[1760846353204,0.1,187.36,187.35,22.88]
[1760846353400,0.1,187.36,187.35,23.41376034]
[1760846353606,0.1,187.36,187.33,7.47804503]
[1760846354196,0.1,187.36,187.33,5.33814935]
[1760846354614,0.1,187.36,187.34,3.44043426]
[1760846355004,0.1,187.36,187.35,5.33760341]
[1760846356113,0.1,187.36,187.35,7.47738461]
[1760846361807,0.1,187.36,187.35,8.15738461]
[1760846366222,0.1,187.36,187.35,19.03385982]
[1760846372135,0.1,187.36,187.35,45.99385982]
[1760846372435,0.1,187.36,187.35,19.03385982]
[1760846372938,0.1,187.36,187.35,45.99385982]
[1760846373335,0.1,187.36,187.35,19.03385982]
[1760846373636,0.1,187.36,187.35,45.99385982]
[1760846373827,0.1,187.36,187.35,7.47738461]
[1760846374422,0.1,187.36,187.35,8.15738461]
[1760846377216,0.1,187.36,187.35,35.11738461]
[1760846379424,0.1,187.36,187.35,8.15738461]
[1760846386748,0.1,187.36,187.35,49.86805442]
[1760846386933,0.1,187.38,187.37,14.21690947]
[1760846387132,0.1,187.38,187.37,41.71061283]
[1760846387352,0.1,187.38,187.37,15.45061283]
[1760846387647,0.1,187.38,187.37,17.58982185]
[1760846388557,0.1,187.38,187.37,22.92685552]
[1760846388841,0.1,187.38,187.37,49.88685552]
[1760846389043,0.1,187.38,187.37,22.92685552]
[1760846389650,0.1,187.38,187.37,49.88685552]
[1760846389949,0.1,187.38,187.37,22.92685552]
[1760846390354,0.1,187.38,187.37,49.88685552]
[1760846391654,0.1,187.38,187.37,22.92685552]
[1760846392156,0.1,187.38,187.37,49.88685552]
[1760846392534,0.1,187.38,187.37,22.92685552]
[1760846393156,0.1,187.38,187.37,49.88685552]
[1760846393334,0.1,187.38,187.37,22.92685552]
[1760846393535,0.1,187.38,187.37,7.47624269]
[1760846400867,0.1,187.38,187.37,11.51667695]
[1760846402346,0.1,187.38,187.37,12.05038031]
[1760846402662,0.1,187.38,187.37,39.01038031]
[1760846402842,0.1,187.38,187.37,12.05038031]
[1760846403164,0.1,187.38,187.37,10.81667695]
[1760846403466,0.1,187.38,187.37,7.47624269]
[1760846403837,0.1,187.38,187.37,11.51667695]
[1760846406079,0.1,187.38,187.37,38.47667695]
[1760846406266,0.1,187.38,187.37,22.39315216]
[1760846406561,0.1,187.38,187.37,41.9327179]
[1760846406760,0.1,187.38,187.37,34.39667695]
[1760846406961,0.1,187.38,187.37,10.81667695]
[1760846407169,0.1,187.38,187.37,6.17964328]
[1760846407345,0.1,187.38,187.37,5.47964328]
[1760846408367,0.1,187.38,187.37,11.52667695]
[1760846410057,0.1,187.38,187.37,8.18624269]
[1760846410461,0.1,187.38,187.37,11.52667695]
[1760846412949,0.1,187.38,187.37,22.40315216]
[1760846413665,0.1,187.38,187.37,49.36315216]
[1760846413857,0.1,187.38,187.37,22.40315216]
[1760846414059,0.1,187.38,187.37,45.28315216]
[1760846414469,0.1,187.39,187.37,45.28315216]
[1760846414470,0.1,187.39,187.38,10.87647521]
[1760846414651,0.1,187.39,187.38,12.09015009]
[1760846415160,0.1,187.39,187.38,39.05015009]
[1760846415360,0.1,187.39,187.38,15.43058435]
[1760846415573,0.1,187.39,187.38,42.39058435]
[1760846416153,0.1,187.39,187.38,15.43058435]
[1760846416469,0.1,187.41,187.38,53.20686208]
[1760846416781,0.1,187.42,187.4,37.09690947]
[1760846417074,0.1,187.42,187.41,3.87402371]
[1760846417262,0.1,187.42,187.41,4.55402371]
[1760846417652,0.1,187.42,187.41,33.65266086]
[1760846417971,0.1,187.48,187.42,10.87647521]
[1760846418178,0.1,187.48,187.44,10.87647521]
[1760846418470,0.1,187.48,187.47,3.34043426]
[1760846418677,0.1,187.48,187.47,8.67462106]
[1760846418862,0.1,187.48,187.47,9.35462106]
[1760846419394,0.1,187.48,187.47,11.49302954]
[1760846420350,0.2,187.48,187.47,2.13840848]
[1760846422157,0.64,187.48,187.47,2.13840848]
[1760846422784,0.1,187.48,187.47,2.13840848]
[1760846423686,0.1,187.48,187.47,6.15884274]
[1760846424392,0.1,187.48,187.47,11.49302954]
[1760846425474,0.1,187.48,187.47,8.15259528]
[1760846425674,0.1,187.48,187.47,7.47259528]
[1760846425981,0.1,187.48,187.47,8.15259528]
[1760846426182,0.1,187.48,187.47,7.47259528]
[1760846426585,0.1,187.48,187.47,2.13840848]
[1760846426902,0.2,187.48,187.47,2.13840848]
[1760846427194,0.1,187.48,187.47,7.47259528]
[1760846430210,0.1,187.48,187.47,2.13840848]
[1760846430601,3.34043426,187.51,187.47,2.13840848]
[1760846432011,9.111528,187.58,187.47,2.13840848]
[1760846432012,3.34043426,187.49,187.47,2.13840848]
[1760846432197,102.1,187.54,187.47,2.13840848]
[1760846432403,3.34043426,187.48,187.47,2.13840848]
[1760846433218,3.34043426,187.49,187.47,2.13840848]
[1760846433388,3.34043426,187.48,187.47,2.13840848]
[1760846434711,3.34043426,187.48,187.41,0.68]
[1760846434895,3.34043426,187.47,187.41,7.36086852]
[1760846435597,3.34043426,187.47,187.42,5.33557189]
[1760846436492,3.34043426,187.47,187.41,5.33584045]
[1760846436716,3.34043426,187.43,187.4,5.33557189]
[1760846436915,22.88,187.46,187.34,0.68]
[1760846437210,3.34043426,187.43,187.36,3.34043426]
[1760846437427,3.34043426,187.43,187.36,4.02043426]
[1760846437631,3.34043426,187.41,187.36,0.68]
[1760846438140,3.34043426,187.4,187.36,0.68]
[1760846438307,3.34043426,187.41,187.36,0.68]
[1760846438935,3.34043426,187.42,187.36,6.01726607]
[1760846439134,22.88,187.44,187.36,9.35770033]
[1760846439350,3.34043426,187.43,187.36,9.35770033]
[1760846440035,22.88,187.44,187.36,9.35770033]
[1760846440235,26.22043426,187.44,187.38,3.34043426]
[1760846440813,26.22043426,187.44,187.37,4.02043426]
[1760846441015,26.22043426,187.44,187.37,6.01678588]
[1760846441230,3.34043426,187.43,187.37,6.01678588]
[1760846442013,3.34043426,187.43,187.37,9.35722014]
[1760846442209,3.34043426,187.44,187.37,9.35722014]
[1760846442637,26.22043426,187.45,187.39,3.34043426]
[1760846442940,26.22043426,187.45,187.37,19.35937007]
[1760846442941,22.88,187.45,187.4,4.02043426]
[1760846443145,105.44043426,187.47,187.41,0.68]
[1760846443514,3.34043426,187.48,187.42,3.34043426]
[1760846443738,3.34043426,187.48,187.41,4.02043426]
[1760846443915,3.34043426,187.48,187.41,17.36301845]
[1760846444422,3.34043426,187.48,187.41,14.02258419]
[1760846444620,3.34043426,187.48,187.41,4.02043426]
[1760846445012,3.34043426,187.47,187.41,0.68]
[1760846445537,3.34043426,187.47,187.41,6.01582791]
[1760846446637,3.34043426,187.47,187.41,0.68]
[1760846447317,3.34043426,187.47,187.41,6.01579642]
[1760846448116,3.34043426,187.45,187.38,0.66]
[1760846448337,3.34043426,187.45,187.38,32.21704215]
[1760846448709,3.34043426,187.45,187.38,31.55704215]
[1760846448910,3.34043426,187.45,187.39,0.66]
[1760846449325,3.34043426,187.45,187.4,5.33617929]
[1760846449716,3.34043426,187.45,187.4,5.99617929]
[1760846449922,102.1,187.47,187.39,5.3364391]
[1760846449923,3.34043426,187.44,187.39,5.3364391]
[1760846450126,3.34043426,187.42,187.37,0.66]
[1760846451416,3.34043426,187.43,187.38,0.66]
[1760846452142,3.34043426,187.43,187.36,9.33772934]
[1760846452326,3.34043426,187.41,187.36,5.99729508]
[1760846452640,22.88,187.44,187.37,0.66]
[1760846452837,3.34043426,187.42,187.37,0.66]
[1760846453424,22.88,187.44,187.35,3.34043426]
[1760846453425,3.34043426,187.41,187.35,3.34043426]
[1760846453623,3.34043426,187.41,187.35,9.33800233]
[1760846453935,22.88,187.44,187.35,0.66]
[1760846454115,22.88,187.44,187.35,4.00043426]
[1760846454116,3.34043426,187.42,187.35,4.00043426]
[1760846454315,3.34043426,187.42,187.35,9.33802444]
[1760846454525,3.34043426,187.42,187.36,0.66]
[1760846455222,3.34043426,187.42,187.35,8.67802444]
[1760846455431,3.34043426,187.41,187.35,8.67802444]
[1760846455838,3.34043426,187.41,187.35,9.33802444]
[1760846457024,3.34043426,187.42,187.35,9.33802444]
[1760846457335,3.34043426,187.41,187.35,5.99759018]
[1760846457527,3.34043426,187.4,187.35,5.33759018]
[1760846457924,3.34043426,187.4,187.35,5.99759018]
[1760846458129,3.34043426,187.41,187.36,0.66]
[1760846458720,3.34043426,187.41,187.37,0.66]
[1760846460039,3.34043426,187.41,187.38,22.88]
[1760846460233,3.34043426,187.4,187.37,0.66]
[1760846460421,3.34043426,187.39,187.37,22.88]
[1760846460622,3.34043426,187.41,187.37,23.54]
[1760846461438,3.34043426,187.41,187.37,0.66]
[1760846462250,3.34043426,187.4,187.37,0.66]
[1760846462947,3.34043426,187.4,187.36,0.66]
[1760846463151,3.34043426,187.4,187.37,0.66]
[1760846463750,3.34043426,187.4,187.35,5.99745112]
[1760846463934,3.34043426,187.4,187.36,0.66]
[1760846464944,3.34043426,187.39,187.36,0.66]
[1760846465147,3.34043426,187.4,187.36,0.66]
[1760846465338,3.34043426,187.4,187.35,5.3375278]
[1760846465339,3.34043426,187.4,187.37,0.66]
[1760846465949,3.34043426,187.4,187.38,0.66]
[1760846466949,3.34043426,187.4,187.36,0.66]
[1760846467150,3.34043426,187.4,187.37,0.66]
[1760846469134,3.34043426,187.38,187.33,6.05811775]
[1760846469324,102.1,187.39,187.34,0.72]
[1760846469537,3.34043426,187.38,187.34,0.72]
[1760846472839,102.1,187.39,187.34,0.72]
[1760846473045,102.1,187.39,187.34,9.39823142]
[1760846473046,105.44043426,187.39,187.34,9.39823142]
[1760846473246,105.44043426,187.39,187.35,0.72]
[1760846473641,105.44043426,187.39,187.34,8.67823142]
[1760846473843,105.44043426,187.39,187.36,0.69]
[1760846475643,3.34043426,187.38,187.34,0.69]
[1760846475838,3.34043426,187.38,187.35,0.69]
[1760846476040,3.34043426,187.38,187.32,16.05093496]
[1760846476041,3.34043426,187.36,187.27,13.34956458]
[1760846476252,3.34043426,187.33,187.28,4.03043426]
[1760846476452,22.88,187.35,187.29,0.69]
[1760846476639,3.34043426,187.33,187.29,0.69]
[1760846477341,3.34043426,187.32,187.27,8.68006212]
[1760846477538,22.88,187.35,187.25,0.69]
[1760846477539,3.34043426,187.29,187.25,0.69]
[1760846477842,3.34043426,187.27,187.23,0.89]
[1760846478150,3.34043426,187.26,187.23,0.89]
[1760846478571,3.34043426,187.24,187.23,0.2]
[1760846479060,37.09690947,187.24,187.23,0.2]
[1760846479262,37.09690947,187.24,187.15,0.2]
[1760846479263,10.87647521,187.23,187.15,0.2]
[1760846479460,3.34043426,187.18,187.15,0.2]
[1760846479757,3.34043426,187.18,187.15,23.08]
[1760846480147,3.34043426,187.18,187.15,0.2]
[1760846484268,10.87647521,187.23,187.15,0.2]
[1760846484567,3.34043426,187.18,187.15,0.89]
[1760846484866,3.34043426,187.18,187.16,0.69]
[1760846485164,3.34043426,187.18,187.17,0.89]
[1760846485364,3.34043426,187.18,187.17,0.2]
[1760846489570,26.22043426,187.18,187.17,0.2]
[1760846490876,37.09690947,187.18,187.17,0.2]
[1760846494248,22.88,187.18,187.17,0.2]
[1760846494461,26.22043426,187.18,187.17,0.2]
[1760846497053,22.88,187.18,187.17,0.2]
[1760846497254,26.22043426,187.18,187.17,0.89]
[1760846499078,26.22043426,187.18,187.17,0.2]
[1760846503476,37.09690947,187.18,187.17,0.2]
[1760846505197,42.43936058,187.18,187.17,0.2]
[1760846505855,37.09690947,187.18,187.17,0.2]
[1760846508078,26.22043426,187.18,187.17,0.88]
[1760846508260,26.22043426,187.18,187.17,0.2]
[1760846508463,37.09690947,187.18,187.17,0.2]
[1760846517387,37.09690947,187.18,187.17,0.88]
[1760846517794,37.09690947,187.18,187.17,0.2]
[1760846518473,33.75647521,187.18,187.17,0.88]
[1760846518679,37.09690947,187.18,187.17,0.88]
[1760846520799,37.09690947,187.18,187.17,0.2]
[1760846521899,37.09690947,187.18,187.17,0.88]
[1760846525501,37.09690947,187.18,187.17,0.2]
[1760846532706,40.7024921,187.18,187.17,0.2]
[1760846535690,46.04494321,187.18,187.15,0.2]
[1760846535912,37.09690947,187.16,187.15,0.2]
[1760846536319,37.09690947,187.16,187.15,0.86]
[1760846537111,37.09690947,187.16,187.15,0.2]
[1760846537914,33.75647521,187.16,187.15,0.86]
[1760846538093,5.34188318,187.2,187.15,0.86]
[1760846538094,22.88,187.19,187.15,0.86]
[1760846538289,26.22043426,187.16,187.15,0.2]
[1760846538915,26.22043426,187.16,187.15,0.86]
[1760846541801,37.09690947,187.16,187.15,0.2]
[1760846544229,42.43993148,187.16,187.15,0.2]
[1760846544519,3.34043426,187.12,187.11,0.66]
[1760846544823,26.22043426,187.12,187.11,0.66]
[1760846545834,26.22043426,187.12,187.1,0.2]
[1760846545996,116.31690947,187.11,187.1,0.2]
[1760846546605,116.31690947,187.11,187.1,0.86]
[1760846547123,112.97647521,187.11,187.1,0.86]
[1760846547306,116.31690947,187.11,187.1,0.86]
[1760846551509,17.55734373,187.11,187.1,0.2]
[1760846552914,14.21690947,187.11,187.1,0.2]
[1760846554329,14.21690947,187.11,187.1,0.86]
[1760846554532,14.21690947,187.11,187.1,0.2]
[1760846554933,14.21690947,187.11,187.1,0.86]
[1760846555138,26.22043426,187.11,187.1,0.86]
[1760846556133,10.87647521,187.14,187.1,0.86]
[1760846556328,3.34043426,187.13,187.11,0.66]
[1760846556631,3.34043426,187.14,187.11,0.66]
[1760846557131,3.34043426,187.14,187.12,3.34043426]
[1760846557314,3.34043426,187.16,187.13,0.66]
[1760846558827,3.34043426,187.15,187.13,0.66]
[1760846559728,3.34043426,187.16,187.13,0.66]
[1760846559934,3.34043426,187.15,187.13,0.66]
[1760846564621,105.44043426,187.16,187.15,0.66]
[1760846565352,105.44043426,187.16,187.15,6.00419285]
[1760846565822,105.44043426,187.16,187.15,5.34419285]
[1760846566152,102.1,187.16,187.15,5.34419285]
[1760846566318,105.44043426,187.16,187.15,6.02419285]
[1760846567451,105.44043426,187.16,187.15,0.68]
[1760846567854,105.44043426,187.16,187.14,6.02419285]
[1760846568035,105.44043426,187.16,187.14,6.70419285]
[1760846568036,102.1,187.16,187.14,6.70419285]
[1760846568236,3.34043426,187.15,187.14,6.02419285]
[1760846568821,3.34043426,187.15,187.14,6.70419285]
[1760846569341,105.44043426,187.16,187.14,6.70419285]
[1760846569640,105.44043426,187.16,187.15,0.68]
[1760846569832,105.44043426,187.16,187.14,6.70419285]
[1760846570030,3.34043426,187.15,187.14,6.70419285]
[1760846570744,105.44043426,187.16,187.14,6.70419285]
[1760846570942,105.44043426,187.16,187.14,6.02419285]
[1760846571139,105.44043426,187.16,187.15,0.68]
[1760846571934,105.44043426,187.16,187.14,6.02419285]
[1760846572136,3.34043426,187.15,187.14,6.70419285]
[1760846572645,105.44043426,187.16,187.14,6.70419285]
[1760846572947,102.1,187.16,187.15,0.68]
[1760846577053,102.1,187.16,187.15,12.04778232]
[1760846578147,105.44043426,187.16,187.15,12.04778232]
[1760846582646,105.44043426,187.16,187.13,0.68]
[1760846582839,3.34043426,187.14,187.13,12.04778232]
[1760846583353,3.34043426,187.15,187.13,12.72778232]
[1760846583936,3.34043426,187.14,187.13,12.04778232]
[1760846584339,3.34043426,187.14,187.12,0.68]
[1760846584639,3.34043426,187.14,187.13,0.68]
[1760846584838,105.44043426,187.16,187.13,0.68]
[1760846585351,105.44043426,187.16,187.14,0.68]
[1760846585727,3.34043426,187.15,187.14,0.68]
[1760846587749,105.44043426,187.16,187.14,12.72778232]
[1760846589145,102.1,187.16,187.14,12.04778232]
[1760846589346,105.44043426,187.16,187.14,12.76778232]
[1760846591371,3.34043426,187.15,187.14,12.76778232]
[1760846592968,3.34043426,187.15,187.14,12.04778232]
[1760846593165,3.34043426,187.15,187.14,12.76778232]
[1760846593361,3.34043426,187.15,187.14,12.04778232]
[1760846593670,3.34043426,187.15,187.11,0.66]
[1760846593872,3.34043426,187.13,187.12,0.66]
[1760846594258,3.34043426,187.13,187.1,0.86]
[1760846594462,3.34043426,187.11,187.1,0.2]
[1760846594656,40.43734373,187.11,187.1,0.2]
[1760846596769,37.09690947,187.11,187.1,0.2]
[1760846596981,3.34043426,187.11,187.1,0.2]
[1760846597177,3.34043426,187.11,187.1,0.86]
[1760846597579,3.34043426,187.11,187.1,3.00333556]
[1760846598853,22.88,187.13,187.1,3.00333556]
[1760846598854,3.34043426,187.12,187.1,3.00333556]
[1760846599060,3.34043426,187.12,187.11,0.66]
[1760846604784,3.34043426,187.12,187.11,6.00512298]
[1760846605285,102.1,187.14,187.11,6.00512298]
[1760846605487,105.44043426,187.14,187.11,5.34512298]
[1760846605688,105.44043426,187.14,187.12,0.66]
[1760846605868,3.34043426,187.13,187.12,0.66]
[1760846606477,3.34043426,187.13,187.12,6.00512298]
[1760846607172,3.34043426,187.13,187.12,5.34512298]
[1760846607992,3.34043426,187.13,187.12,6.00512298]
[1760846609994,102.1,187.14,187.12,6.00512298]
[1760846610193,105.44043426,187.14,187.13,0.66]
[1760846610396,102.1,187.14,187.13,0.66]
[1760846610773,26.22043426,187.15,187.13,0.66]
[1760846611093,26.22043426,187.15,187.12,5.34512298]
[1760846611298,26.22043426,187.15,187.13,0.66]
[1760846611672,22.88,187.15,187.14,6.00512298]
[1760846612677,22.88,187.15,187.14,5.34512298]
[1760846612891,26.22043426,187.15,187.13,0.66]
[1760846613070,26.22043426,187.15,187.13,6.00512298]
[1760846613481,3.34043426,187.14,187.13,5.34512298]
[1760846614398,26.22043426,187.15,187.13,6.00512298]
[1760846614691,22.88,187.15,187.14,0.66]
[1760846615678,26.22043426,187.15,187.14,0.66]
[1760846615992,22.88,187.15,187.14,0.66]
[1760846616696,22.88,187.15,187.1,8.88514339]
[1760846616896,26.22043426,187.15,187.12,0.66]
[1760846617092,3.34043426,187.14,187.11,0.66]
[1760846617298,105.44043426,187.14,187.12,0.66]
[1760846617492,105.44043426,187.14,187.1,0.86]
[1760846618205,105.44043426,187.14,187.11,0.66]
[1760846618394,105.44043426,187.14,187.1,0.2]
[1760846618701,105.44043426,187.14,187.12,0.66]
[1760846618895,105.44043426,187.14,187.1,0.86]
[1760846619091,105.44043426,187.14,187.1,0.2]
[1760846619303,105.44043426,187.14,187.11,0.66]
[1760846619507,105.44043426,187.14,187.12,0.66]
[1760846620200,105.44043426,187.14,187.1,0.86]
[1760846620501,105.44043426,187.14,187.11,0.66]
[1760846620700,3.34043426,187.13,187.11,0.66]
[1760846621099,105.44043426,187.14,187.11,0.66]
[1760846621407,105.44043426,187.14,187.1,0.2]
[1760846621408,3.34043426,187.12,187.1,0.2]
[1760846621602,3.34043426,187.12,187.1,0.86]
[1760846622310,3.34043426,187.12,187.1,0.2]
[1760846622515,3.34043426,187.11,187.1,0.2]
[1760846625418,3.34043426,187.13,187.1,0.91]
[1760846625617,22.88,187.12,187.11,0.71]
[1760846625911,102.1,187.14,187.11,0.71]
[1760846626314,102.1,187.14,187.12,0.71]
[1760846626813,102.1,187.14,187.13,0.71]
[1760846627019,102.1,187.14,187.13,4.05043426]
[1760846627521,102.1,187.14,187.13,0.71]
[1760846630729,102.1,187.14,187.13,4.05043426]
[1760846631113,102.1,187.14,187.13,0.71]
[1760846631609,105.44043426,187.18,187.13,0.71]
[1760846631922,102.1,187.18,187.13,9.39427137]
[1760846632124,102.1,187.18,187.14,0.71]
[1760846632325,102.1,187.18,187.15,0.71]
[1760846633939,105.44043426,187.18,187.15,0.71]
[1760846634738,3.34043426,187.17,187.13,0.71]
[1760846635023,3.34043426,187.17,187.14,0.71]
[1760846635807,3.34043426,187.17,187.12,3.34043426]
[1760846636016,105.44043426,187.18,187.13,0.71]